[Event "Late-Titled-Tuesday-Blitz-January-30-2024"]
[Site "Chess.com"]
[Date "2024.01.30"]
[Round "9"]
[White "cristiano78"]
[Black "shirovin"]
[Result "1-0"]
[WhiteElo "2292"]
[BlackElo "2058"]
[TimeControl "180+1"]
[EndTime "15:43:12 PST"]
[Termination "cristiano78 won by checkmate"]

1. d4 {[%clk 0:03:00.9]} 1... Nf6 {[%clk 0:02:58.5]} 2. c4 {[%clk 0:02:59.9]}
2... g6 {[%clk 0:02:59.1]} 3. Nc3 {[%clk 0:02:58.7]} 3... Bg7 {[%clk 0:02:59.5]}
4. Nf3 {[%clk 0:02:57.3]} 4... d6 {[%clk 0:02:59.8]} 5. e4 {[%clk 0:02:56.7]}
5... O-O {[%clk 0:03:00.3]} 6. Be2 {[%clk 0:02:57.2]} 6... e5 {[%clk 0:02:59.7]}
7. O-O {[%clk 0:02:57.8]} 7... Nc6 {[%clk 0:02:59.2]} 8. d5 {[%clk 0:02:58.2]}
8... Ne7 {[%clk 0:02:58.9]} 9. Ne1 {[%clk 0:02:58.8]} 9... Nd7 {[%clk
0:02:58.2]} 10. Be3 {[%clk 0:02:59.4]} 10... f5 {[%clk 0:02:58.2]} 11. f3 {[%clk
0:02:59.9]} 11... f4 {[%clk 0:02:58]} 12. Bf2 {[%clk 0:02:59.9]} 12... g5 {[%clk
0:02:58.4]} 13. Nb5 {[%clk 0:03:00.3]} 13... Nf6 {[%clk 0:02:52.3]} 14. Nxa7
{[%clk 0:02:58.1]} 14... Bd7 {[%clk 0:02:51.9]} 15. Nd3 {[%clk 0:02:55.7]} 15...
h5 {[%clk 0:02:46.4]} 16. c5 {[%clk 0:02:55.7]} 16... g4 {[%clk 0:02:09.1]} 17.
cxd6 {[%clk 0:02:54.4]} 17... cxd6 {[%clk 0:02:06.5]} 18. Qb3 {[%clk 0:02:52]}
18... Rb8 {[%clk 0:01:57.5]} 19. Bb6 {[%clk 0:02:49.2]} 19... Qe8 {[%clk
0:01:49]} 20. a4 {[%clk 0:02:44.4]} 20... Qg6 {[%clk 0:01:45.2]} 21. Nb5 {[%clk
0:02:40.9]} 21... Ne8 {[%clk 0:01:37.3]} 22. Rac1 {[%clk 0:02:26.9]} 22... Rf7
{[%clk 0:01:36.5]} 23. Nc7 {[%clk 0:02:16.3]} 23... Rc8 {[%clk 0:01:17.3]} 24.
Nxe8 {[%clk 0:02:14.9]} 24... Rxe8 {[%clk 0:01:10]} 25. Rc7 {[%clk 0:02:13.8]}
25... Bc8 {[%clk 0:00:57.4]} 26. Rfc1 {[%clk 0:02:11.3]} 26... Bf8 {[%clk
0:00:55.4]} 27. Ne1 {[%clk 0:02:02.2]} 27... Rg7 {[%clk 0:00:51.7]} 28. Kf1
{[%clk 0:01:43.2]} 28... gxf3 {[%clk 0:00:33.6]} 29. Bxf3 {[%clk 0:01:42.5]}
29... Bg4 {[%clk 0:00:33.3]} 30. Rxb7 {[%clk 0:01:38.1]} 30... Kh8 {[%clk
0:00:15.4]} 31. Rcc7 {[%clk 0:01:34.1]} 31... Bxf3 {[%clk 0:00:11.6]} 32. Qxf3
{[%clk 0:01:32]} 32... Nf5 {[%clk 0:00:11.7]} 33. exf5 {[%clk 0:01:28.6]} 33...
Qxf5 {[%clk 0:00:10.9]} 34. Rxg7 {[%clk 0:01:24.9]} 34... Bxg7 {[%clk
0:00:10.6]} 35. Qc3 {[%clk 0:01:16.2]} 35... e4 {[%clk 0:00:10]} 36. Qxg7#
{[%clk 0:01:14.8]} 1-0

[Event "Late-Titled-Tuesday-Blitz-January-30-2024"]
[Site "Chess.com"]
[Date "2024.01.30"]
[Round "9"]
[White "ImportedItalianMaple"]
[Black "Meri-Arabidze"]
[Result "0-1"]
[WhiteElo "2480"]
[BlackElo "2727"]
[TimeControl "180+1"]
[EndTime "15:43:13 PST"]
[Termination "Meri-Arabidze won by resignation"]

1. e4 {[%clk 0:03:00.9]} 1... c5 {[%clk 0:03:00]} 2. Nf3 {[%clk 0:03:00.1]} 2...
e6 {[%clk 0:03:00.6]} 3. d4 {[%clk 0:03:00.1]} 3... cxd4 {[%clk 0:03:01.5]} 4.
Qxd4 {[%clk 0:03:00.6]} 4... Nc6 {[%clk 0:03:01.6]} 5. Qe3 {[%clk 0:03:00.9]}
5... a6 {[%clk 0:03:00]} 6. Nc3 {[%clk 0:02:59.7]} 6... d6 {[%clk 0:03:00]} 7.
Bd2 {[%clk 0:02:57.3]} 7... Nf6 {[%clk 0:03:00.1]} 8. O-O-O {[%clk 0:02:56.4]}
8... Be7 {[%clk 0:02:58.8]} 9. h3 {[%clk 0:02:45.9]} 9... Qc7 {[%clk 0:02:55.6]}
10. g4 {[%clk 0:02:44.1]} 10... O-O {[%clk 0:02:55.2]} 11. g5 {[%clk 0:02:42.5]}
11... Nd7 {[%clk 0:02:55.2]} 12. h4 {[%clk 0:02:41.6]} 12... b5 {[%clk
0:02:54.4]} 13. Kb1 {[%clk 0:02:40.6]} 13... Nc5 {[%clk 0:02:49.5]} 14. h5
{[%clk 0:02:36.7]} 14... b4 {[%clk 0:02:49.7]} 15. Ne2 {[%clk 0:02:33.5]} 15...
Ne5 {[%clk 0:02:33.8]} 16. Nxe5 {[%clk 0:02:26.6]} 16... dxe5 {[%clk 0:02:34.7]}
17. Bxb4 {[%clk 0:02:13.9]} 17... Rb8 {[%clk 0:02:34.7]} 18. Bd2 {[%clk
0:01:59.2]} 18... Bb7 {[%clk 0:02:18.8]} 19. Bg2 {[%clk 0:01:53.7]} 19... Rfc8
{[%clk 0:02:18.6]} 20. Nc3 {[%clk 0:01:48.3]} 20... Nd7 {[%clk 0:02:08.2]} 21.
g6 {[%clk 0:01:45.4]} 21... Nf6 {[%clk 0:01:46.3]} 22. gxf7+ {[%clk 0:01:33.1]}
22... Kxf7 {[%clk 0:01:47.2]} 23. h6 {[%clk 0:01:28.2]} 23... g6 {[%clk
0:01:46.8]} 24. Rdf1 {[%clk 0:01:24.9]} 24... Bc5 {[%clk 0:01:42.3]} 25. Qg3
{[%clk 0:01:22]} 25... Bd4 {[%clk 0:01:41.7]} 26. f4 {[%clk 0:00:58.8]} 26...
Ba8 {[%clk 0:01:29.5]} 27. f5 {[%clk 0:00:38.1]} 27... Bxc3 {[%clk 0:01:22.6]}
28. fxg6+ {[%clk 0:00:30.6]} 28... Ke7 {[%clk 0:01:13.3]} 29. Rxf6 {[%clk
0:00:10]} 29... Rxb2+ {[%clk 0:01:10]} 30. Kc1 {[%clk 0:00:08.7]} 30... Bxd2+
{[%clk 0:01:08.6]} 31. Kxb2 {[%clk 0:00:08.8]} 31... Qxc2+ {[%clk 0:01:08.3]}
32. Ka3 {[%clk 0:00:09.5]} 32... Rc3+ {[%clk 0:01:06.9]} 0-1

[Event "Late-Titled-Tuesday-Blitz-January-30-2024"]
[Site "Chess.com"]
[Date "2024.01.30"]
[Round "9"]
[White "jinbojinbo"]
[Black "english_player_89"]
[Result "1-0"]
[WhiteElo "2624"]
[BlackElo "2433"]
[TimeControl "180+1"]
[EndTime "15:43:16 PST"]
[Termination "jinbojinbo won on time"]

1. Nf3 {[%clk 0:03:00.9]} 1... Nf6 {[%clk 0:02:59.8]} 2. g3 {[%clk 0:03:01]}
2... d5 {[%clk 0:03:00.2]} 3. Bg2 {[%clk 0:03:01.9]} 3... c6 {[%clk 0:02:59.6]}
4. O-O {[%clk 0:03:02.8]} 4... Bf5 {[%clk 0:02:59.7]} 5. d3 {[%clk 0:03:03.7]}
5... e6 {[%clk 0:03:00.2]} 6. Nbd2 {[%clk 0:03:04.1]} 6... h6 {[%clk 0:03:00.8]}
7. Re1 {[%clk 0:03:04]} 7... Be7 {[%clk 0:03:01.1]} 8. e4 {[%clk 0:03:04.3]}
8... Bh7 {[%clk 0:03:01.7]} 9. Qe2 {[%clk 0:03:04.6]} 9... O-O {[%clk
0:03:01.8]} 10. e5 {[%clk 0:03:04.1]} 10... Nfd7 {[%clk 0:02:58.4]} 11. Nf1
{[%clk 0:03:04.4]} 11... c5 {[%clk 0:02:58.1]} 12. h4 {[%clk 0:03:04.7]} 12...
Nc6 {[%clk 0:02:58.1]} 13. Bf4 {[%clk 0:03:04.3]} 13... Re8 {[%clk 0:02:58.4]}
14. N1h2 {[%clk 0:03:03.9]} 14... a5 {[%clk 0:02:57.2]} 15. Ng4 {[%clk
0:03:03.6]} 15... Bf8 {[%clk 0:02:52.1]} 16. Qd2 {[%clk 0:02:53.5]} 16... a4
{[%clk 0:02:29]} 17. a3 {[%clk 0:02:52.9]} 17... Nd4 {[%clk 0:02:07.2]} 18. Nxd4
{[%clk 0:02:49.7]} 18... cxd4 {[%clk 0:02:08.1]} 19. h5 {[%clk 0:02:49.2]} 19...
Rc8 {[%clk 0:01:57.9]} 20. Re2 {[%clk 0:02:45.2]} 20... Qb6 {[%clk 0:01:56.6]}
21. Rb1 {[%clk 0:02:43.7]} 21... Bxa3 {[%clk 0:01:50.8]} 22. Bxh6 {[%clk
0:02:37.2]} 22... gxh6 {[%clk 0:01:39.6]} 23. Nxh6+ {[%clk 0:02:38.1]} 23... Kf8
{[%clk 0:01:33.4]} 24. Qf4 {[%clk 0:02:37.7]} 24... Re7 {[%clk 0:01:28]} 25. Ng4
{[%clk 0:02:35.2]} 25... Ke8 {[%clk 0:00:53.3]} 26. Qh6 {[%clk 0:02:33.3]} 26...
Nf8 {[%clk 0:00:52.2]} 27. Nf6+ {[%clk 0:02:32.9]} 27... Kd8 {[%clk 0:00:52]}
28. Qxf8+ {[%clk 0:02:18.8]} 28... Kc7 {[%clk 0:00:46.8]} 29. Qh6 {[%clk
0:02:18.1]} 29... Bg8 {[%clk 0:00:37.9]} 30. Nxd5+ {[%clk 0:02:11.8]} 30... exd5
{[%clk 0:00:33.7]} 31. Qxb6+ {[%clk 0:02:12.7]} 31... Kxb6 {[%clk 0:00:33.2]}
32. bxa3+ {[%clk 0:02:13.6]} 32... Ka5 {[%clk 0:00:29.8]} 33. Bxd5 {[%clk
0:02:13]} 33... b5 {[%clk 0:00:28.6]} 34. f4 {[%clk 0:02:12.7]} 34... Rc3 {[%clk
0:00:27.2]} 35. Ra1 {[%clk 0:02:08.9]} 35... Bh7 {[%clk 0:00:22.4]} 36. Kf2
{[%clk 0:02:06.8]} 36... Rd7 {[%clk 0:00:18.8]} 37. Bf3 {[%clk 0:02:05.3]} 37...
Rdc7 {[%clk 0:00:19]} 38. Ra2 {[%clk 0:02:05]} 38... b4 {[%clk 0:00:18.7]} 39.
axb4+ {[%clk 0:02:05.3]} 39... Kxb4 {[%clk 0:00:19.6]} 40. g4 {[%clk 0:02:05.3]}
40... a3 {[%clk 0:00:19.4]} 41. f5 {[%clk 0:02:04.9]} 41... Ka4 {[%clk
0:00:07.9]} 42. Kg3 {[%clk 0:01:59.7]} 42... R3c5 {[%clk 0:00:07.6]} 43. Kf4
{[%clk 0:01:53.7]} 43... Rb5 {[%clk 0:00:07.7]} 44. g5 {[%clk 0:01:53.8]} 44...
Rb2 {[%clk 0:00:07.4]} 45. Bd5 {[%clk 0:01:54.3]} 45... Bg8 {[%clk 0:00:06.4]}
46. h6 {[%clk 0:01:52.4]} 46... Kb4 {[%clk 0:00:03.2]} 47. g6 {[%clk 0:01:50.4]}
47... Rc5 {[%clk 0:00:01]} 48. gxf7 {[%clk 0:01:47.9]} 1-0

[Event "Late-Titled-Tuesday-Blitz-January-30-2024"]
[Site "Chess.com"]
[Date "2024.01.30"]
[Round "9"]
[White "pr1105"]
[Black "DonJuanEGenaro"]
[Result "0-1"]
[WhiteElo "2411"]
[BlackElo "2053"]
[TimeControl "180+1"]
[EndTime "15:43:22 PST"]
[Termination "DonJuanEGenaro won on time"]

1. e4 {[%clk 0:02:55.9]} 1... c5 {[%clk 0:02:58.3]} 2. Nf3 {[%clk 0:02:55.7]}
2... Nc6 {[%clk 0:02:58.3]} 3. Bb5 {[%clk 0:02:55.8]} 3... e6 {[%clk 0:02:57.2]}
4. Bxc6 {[%clk 0:02:53.9]} 4... bxc6 {[%clk 0:02:57.1]} 5. b3 {[%clk 0:02:54.6]}
5... d5 {[%clk 0:02:56.9]} 6. d3 {[%clk 0:02:49]} 6... Nf6 {[%clk 0:02:56.2]} 7.
Qe2 {[%clk 0:02:45.4]} 7... Ba6 {[%clk 0:02:52.4]} 8. Nbd2 {[%clk 0:02:35]} 8...
Be7 {[%clk 0:02:46.2]} 9. Bb2 {[%clk 0:02:34.9]} 9... O-O {[%clk 0:02:44.7]} 10.
g4 {[%clk 0:02:23]} 10... Nxg4 {[%clk 0:02:33.3]} 11. Rg1 {[%clk 0:02:16.8]}
11... f5 {[%clk 0:02:00.7]} 12. exf5 {[%clk 0:01:49.6]} 12... exf5 {[%clk
0:01:50.3]} 13. h3 {[%clk 0:01:39.9]} 13... Bf6 {[%clk 0:01:48.9]} 14. Qe6+
{[%clk 0:01:02.2]} 14... Kh8 {[%clk 0:01:46.1]} 15. Bxf6 {[%clk 0:01:02.3]}
15... Rxf6 {[%clk 0:01:43.9]} 16. Qe2 {[%clk 0:01:01.6]} 16... Qd6 {[%clk
0:01:28]} 17. O-O-O {[%clk 0:00:55]} 17... Re6 {[%clk 0:01:27.6]} 18. Qf1 {[%clk
0:00:55]} 18... Ne5 {[%clk 0:01:25.1]} 19. Ng5 {[%clk 0:00:45.9]} 19... Re7
{[%clk 0:01:17.5]} 20. f4 {[%clk 0:00:19.3]} 20... c4 {[%clk 0:01:05.9]} 21.
dxc4 {[%clk 0:00:13.7]} 21... Qa3+ {[%clk 0:01:00.5]} 22. Kb1 {[%clk 0:00:13.9]}
22... dxc4 {[%clk 0:00:57.2]} 23. Nxc4 {[%clk 0:00:02.4]} 23... Nxc4 {[%clk
0:00:50.6]} 24. Qxc4 {[%clk 0:00:02.4]} 24... Bxc4 {[%clk 0:00:49.5]} 25. Rd4
{[%clk 0:00:02.2]} 25... Bd5 {[%clk 0:00:48.5]} 0-1

[Event "Late-Titled-Tuesday-Blitz-January-30-2024"]
[Site "Chess.com"]
[Date "2024.01.30"]
[Round "9"]
[White "Ajedrecista3000"]
[Black "Cubitas"]
[Result "1/2-1/2"]
[WhiteElo "2608"]
[BlackElo "2724"]
[TimeControl "180+1"]
[EndTime "15:43:24 PST"]
[Termination "Game drawn by repetition"]

1. Nf3 {[%clk 0:03:00.9]} 1... Nf6 {[%clk 0:02:58.8]} 2. c4 {[%clk 0:02:59.7]}
2... g6 {[%clk 0:02:59.4]} 3. Nc3 {[%clk 0:02:57.8]} 3... Bg7 {[%clk 0:03:00.3]}
4. e4 {[%clk 0:02:57.6]} 4... d6 {[%clk 0:03:00.6]} 5. d4 {[%clk 0:02:57.1]}
5... O-O {[%clk 0:03:01.2]} 6. Be2 {[%clk 0:02:57]} 6... e5 {[%clk 0:03:01.7]}
7. d5 {[%clk 0:02:57]} 7... a5 {[%clk 0:03:00.6]} 8. Bg5 {[%clk 0:02:56.6]} 8...
h6 {[%clk 0:03:00]} 9. Be3 {[%clk 0:02:56.8]} 9... Ng4 {[%clk 0:02:56.9]} 10.
Bd2 {[%clk 0:02:56.9]} 10... f5 {[%clk 0:02:56.1]} 11. exf5 {[%clk 0:02:55.3]}
11... gxf5 {[%clk 0:02:55.9]} 12. h3 {[%clk 0:02:54.5]} 12... Nf6 {[%clk
0:02:53.6]} 13. Qc1 {[%clk 0:02:55.1]} 13... f4 {[%clk 0:02:45.5]} 14. g3 {[%clk
0:02:53.7]} 14... e4 {[%clk 0:02:30.6]} 15. Nh4 {[%clk 0:02:53.6]} 15... e3
{[%clk 0:02:21.4]} 16. fxe3 {[%clk 0:02:54.5]} 16... fxg3 {[%clk 0:02:21.7]} 17.
Ng6 {[%clk 0:02:47.3]} 17... g2 {[%clk 0:01:34.5]} 18. Rg1 {[%clk 0:02:45.1]}
18... Bxh3 {[%clk 0:01:31]} 19. Nf4 {[%clk 0:02:35.5]} 19... Ng4 {[%clk
0:01:20.6]} 20. Qc2 {[%clk 0:01:56.3]} 20... Qh4+ {[%clk 0:01:17.3]} 21. Kd1
{[%clk 0:01:56.8]} 21... Rxf4 {[%clk 0:01:10.8]} 22. exf4 {[%clk 0:01:53.7]}
22... Qf2 {[%clk 0:01:08.3]} 23. Qg6 {[%clk 0:01:38.9]} 23... Qxg1+ {[%clk
0:00:57.1]} 24. Kc2 {[%clk 0:01:38.5]} 24... Ne3+ {[%clk 0:00:45.5]} 25. Kb3
{[%clk 0:01:24.1]} 25... Qxa1 {[%clk 0:00:25.5]} 26. Qe8+ {[%clk 0:01:23.6]}
26... Kh7 {[%clk 0:00:25.4]} 27. Bxe3 {[%clk 0:00:57.9]} 27... Bf5 {[%clk
0:00:24.8]} 28. Bg4 {[%clk 0:00:51.7]} 28... Bxg4 {[%clk 0:00:19.5]} 29. Qe4+
{[%clk 0:00:51.2]} 29... Kg8 {[%clk 0:00:19.7]} 30. Qe8+ {[%clk 0:00:51.4]}
30... Bf8 {[%clk 0:00:19.7]} 31. Qg6+ {[%clk 0:00:50.7]} 31... Bg7 {[%clk
0:00:19.8]} 32. Qe8+ {[%clk 0:00:51.1]} 32... Kh7 {[%clk 0:00:19.6]} 33. Qe4+
{[%clk 0:00:51.4]} 33... Bf5 {[%clk 0:00:19.8]} 34. Qxf5+ {[%clk 0:00:51.8]}
34... Kh8 {[%clk 0:00:20.3]} 35. Qc8+ {[%clk 0:00:51.2]} 35... Kh7 {[%clk
0:00:20.8]} 36. Qf5+ {[%clk 0:00:51.6]} 36... Kh8 {[%clk 0:00:20.8]} 37. Qc8+
{[%clk 0:00:51.8]} 37... Kh7 {[%clk 0:00:21.3]} 38. Qf5+ {[%clk 0:00:52.1]}
1/2-1/2

[Event "Late-Titled-Tuesday-Blitz-January-30-2024"]
[Site "Chess.com"]
[Date "2024.01.30"]
[Round "9"]
[White "rhungaski"]
[Black "LittleChessFan"]
[Result "0-1"]
[WhiteElo "2493"]
[BlackElo "2317"]
[TimeControl "180+1"]
[EndTime "15:43:26 PST"]
[Termination "LittleChessFan won by resignation"]

1. e4 {[%clk 0:03:00.9]} 1... c5 {[%clk 0:02:56.5]} 2. Nf3 {[%clk 0:03:00.5]}
2... e6 {[%clk 0:02:53.8]} 3. d4 {[%clk 0:02:58.2]} 3... cxd4 {[%clk 0:02:50.3]}
4. Nxd4 {[%clk 0:02:59.1]} 4... Nf6 {[%clk 0:02:49.7]} 5. Nc3 {[%clk 0:02:57.8]}
5... Nc6 {[%clk 0:02:49]} 6. Ndb5 {[%clk 0:02:57.2]} 6... Bc5 {[%clk 0:02:48.1]}
7. Bf4 {[%clk 0:02:53.9]} 7... O-O {[%clk 0:02:47.1]} 8. Bc7 {[%clk 0:02:53.3]}
8... Qe7 {[%clk 0:02:43.3]} 9. Bd6 {[%clk 0:02:44.9]} 9... Bxd6 {[%clk
0:02:40.5]} 10. Qxd6 {[%clk 0:02:41.9]} 10... Ne8 {[%clk 0:02:39.7]} 11. Qxe7
{[%clk 0:02:33.7]} 11... Nxe7 {[%clk 0:02:40.6]} 12. O-O-O {[%clk 0:02:28.9]}
12... f5 {[%clk 0:02:39.5]} 13. exf5 {[%clk 0:01:48.7]} 13... Nxf5 {[%clk
0:02:40.4]} 14. a4 {[%clk 0:01:37.6]} 14... a6 {[%clk 0:02:34.2]} 15. Na3 {[%clk
0:01:36.7]} 15... d5 {[%clk 0:02:30.1]} 16. g3 {[%clk 0:01:34.9]} 16... Ned6
{[%clk 0:02:25]} 17. Bh3 {[%clk 0:01:26.3]} 17... g5 {[%clk 0:02:18.1]} 18. Rhe1
{[%clk 0:01:20.6]} 18... Bd7 {[%clk 0:02:13.2]} 19. Bg4 {[%clk 0:01:17.4]} 19...
Kg7 {[%clk 0:02:05.8]} 20. a5 {[%clk 0:01:15.2]} 20... Rac8 {[%clk 0:01:59.9]}
21. Nxd5 {[%clk 0:00:27.4]} 21... exd5 {[%clk 0:01:55.7]} 22. Rxd5 {[%clk
0:00:28.3]} 22... Bc6 {[%clk 0:01:50.5]} 23. Rde5 {[%clk 0:00:23.2]} 23... Rce8
{[%clk 0:01:44.9]} 24. c4 {[%clk 0:00:17.5]} 24... Rxe5 {[%clk 0:01:40.7]} 25.
Rxe5 {[%clk 0:00:18.4]} 25... Nh6 {[%clk 0:01:35]} 26. Rxg5+ {[%clk 0:00:16.1]}
26... Kf6 {[%clk 0:01:31.4]} 27. f4 {[%clk 0:00:12]} 27... Ndf7 {[%clk
0:01:27.2]} 28. h4 {[%clk 0:00:11.5]} 28... Nxg4 {[%clk 0:01:23.1]} 29. Rxg4
{[%clk 0:00:11.5]} 29... h5 {[%clk 0:01:19.9]} 30. Rg5 {[%clk 0:00:07.9]} 30...
Nxg5 {[%clk 0:01:17]} 31. fxg5+ {[%clk 0:00:06.4]} 31... Kg6 {[%clk 0:01:16.7]}
32. Nc2 {[%clk 0:00:06.6]} 32... Rf3 {[%clk 0:01:16]} 33. Kd2 {[%clk 0:00:06.8]}
33... Rxg3 {[%clk 0:01:16]} 34. Ne3 {[%clk 0:00:07.6]} 34... Rh3 {[%clk
0:01:15.3]} 35. b4 {[%clk 0:00:06.1]} 35... Rxh4 {[%clk 0:01:14.5]} 36. b5
{[%clk 0:00:07]} 36... axb5 {[%clk 0:01:14.4]} 37. cxb5 {[%clk 0:00:07.9]} 37...
Bxb5 {[%clk 0:01:14.9]} 38. Kc3 {[%clk 0:00:07.8]} 38... Rh3 {[%clk 0:01:14.6]}
39. Kd4 {[%clk 0:00:07.4]} 39... Rxe3 {[%clk 0:01:13.9]} 40. Kxe3 {[%clk
0:00:08.3]} 40... Kxg5 {[%clk 0:01:13.8]} 0-1

[Event "Late-Titled-Tuesday-Blitz-January-30-2024"]
[Site "Chess.com"]
[Date "2024.01.30"]
[Round "9"]
[White "C_K_G"]
[Black "Herman-NY"]
[Result "0-1"]
[WhiteElo "2196"]
[BlackElo "2489"]
[TimeControl "180+1"]
[EndTime "15:43:36 PST"]
[Termination "Herman-NY won by checkmate"]

1. e4 {[%clk 0:03:00.9]} 1... e5 {[%clk 0:02:59.7]} 2. Nf3 {[%clk 0:03:01.2]}
2... Nc6 {[%clk 0:03:00]} 3. Bc4 {[%clk 0:03:01.2]} 3... Nf6 {[%clk 0:02:59.8]}
4. Ng5 {[%clk 0:03:01.2]} 4... d5 {[%clk 0:03:00]} 5. exd5 {[%clk 0:03:01.7]}
5... Na5 {[%clk 0:03:00.6]} 6. Bb5+ {[%clk 0:03:02]} 6... c6 {[%clk 0:03:01.2]}
7. dxc6 {[%clk 0:03:02.5]} 7... bxc6 {[%clk 0:03:02.1]} 8. Qf3 {[%clk
0:03:02.8]} 8... Be7 {[%clk 0:03:01.5]} 9. Bxc6+ {[%clk 0:03:03]} 9... Nxc6
{[%clk 0:03:02.4]} 10. Qxc6+ {[%clk 0:03:03.2]} 10... Bd7 {[%clk 0:03:02.9]} 11.
Qc4 {[%clk 0:03:03.3]} 11... O-O {[%clk 0:03:02.4]} 12. Nc3 {[%clk 0:03:02.8]}
12... Rc8 {[%clk 0:02:28.6]} 13. Qd3 {[%clk 0:02:59.6]} 13... h6 {[%clk
0:02:26.7]} 14. Nge4 {[%clk 0:02:55.5]} 14... Nxe4 {[%clk 0:02:18.9]} 15. Nxe4
{[%clk 0:02:56.4]} 15... Rc6 {[%clk 0:01:54.4]} 16. O-O {[%clk 0:02:08.7]} 16...
Rg6 {[%clk 0:01:48.9]} 17. Re1 {[%clk 0:01:49.8]} 17... Qc7 {[%clk 0:01:44.3]}
18. f3 {[%clk 0:01:45.8]} 18... Rd8 {[%clk 0:01:34.1]} 19. Qc3 {[%clk
0:01:38.5]} 19... Qb8 {[%clk 0:01:22.3]} 20. a3 {[%clk 0:01:26.2]} 20... Bh3
{[%clk 0:01:16.6]} 21. Ng3 {[%clk 0:01:18.7]} 21... Qb6+ {[%clk 0:01:16.4]} 22.
Kf1 {[%clk 0:00:54]} 22... Bc8 {[%clk 0:00:58.4]} 23. Qe3 {[%clk 0:00:41.4]}
23... Bc5 {[%clk 0:00:57.8]} 24. Qe2 {[%clk 0:00:31.2]} 24... h5 {[%clk
0:00:32.9]} 25. b4 {[%clk 0:00:20]} 25... Bd4 {[%clk 0:00:27.5]} 26. c3 {[%clk
0:00:20.2]} 26... Bg1 {[%clk 0:00:27.6]} 27. d3 {[%clk 0:00:17.4]} 27... Bxh2
{[%clk 0:00:26.8]} 28. Ne4 {[%clk 0:00:16.2]} 28... Qg1# {[%clk 0:00:26.6]} 0-1

[Event "Late-Titled-Tuesday-Blitz-January-30-2024"]
[Site "Chess.com"]
[Date "2024.01.30"]
[Round "9"]
[White "BebeBonito2022"]
[Black "Zq1"]
[Result "0-1"]
[WhiteElo "2329"]
[BlackElo "2490"]
[TimeControl "180+1"]
[EndTime "15:43:40 PST"]
[Termination "Zq1 won by resignation"]

1. d4 {[%clk 0:03:00.9]} 1... Nf6 {[%clk 0:02:59.1]} 2. c4 {[%clk 0:03:01.1]}
2... a6 {[%clk 0:02:58.7]} 3. Nc3 {[%clk 0:03:01.1]} 3... c5 {[%clk 0:02:58.7]}
4. d5 {[%clk 0:03:00.8]} 4... b5 {[%clk 0:02:58.3]} 5. Nf3 {[%clk 0:02:42.6]}
5... b4 {[%clk 0:02:56.7]} 6. Na4 {[%clk 0:02:39.6]} 6... d6 {[%clk 0:02:56.7]}
7. Qc2 {[%clk 0:02:37.3]} 7... g6 {[%clk 0:02:52.4]} 8. e4 {[%clk 0:02:37.3]}
8... Bg7 {[%clk 0:02:51.4]} 9. Bd3 {[%clk 0:02:37.4]} 9... O-O {[%clk
0:02:49.3]} 10. O-O {[%clk 0:02:37.1]} 10... Bd7 {[%clk 0:02:48.3]} 11. Rb1
{[%clk 0:02:26.6]} 11... Qa5 {[%clk 0:02:43.5]} 12. b3 {[%clk 0:02:25.9]} 12...
Bxa4 {[%clk 0:02:37.8]} 13. bxa4 {[%clk 0:02:26.3]} 13... Nbd7 {[%clk
0:02:37.5]} 14. Re1 {[%clk 0:02:09.1]} 14... Ng4 {[%clk 0:02:31.1]} 15. Bb2
{[%clk 0:02:05.5]} 15... Bxb2 {[%clk 0:02:10.7]} 16. Rxb2 {[%clk 0:01:59.1]}
16... Nb6 {[%clk 0:02:10.3]} 17. h3 {[%clk 0:01:52]} 17... Ne5 {[%clk 0:02:02]}
18. Nxe5 {[%clk 0:01:44.1]} 18... dxe5 {[%clk 0:02:00.5]} 19. Qd2 {[%clk
0:01:39.6]} 19... Nxa4 {[%clk 0:01:53.4]} 20. Rf1 {[%clk 0:01:29.1]} 20... Nxb2
{[%clk 0:01:50.6]} 21. Qxb2 {[%clk 0:01:26.2]} 21... Qa3 {[%clk 0:01:45.5]} 22.
Qe2 {[%clk 0:01:23.5]} 22... Qc3 {[%clk 0:01:42.9]} 23. f4 {[%clk 0:01:19.1]}
23... f6 {[%clk 0:01:42.3]} 24. Rf3 {[%clk 0:01:12.3]} 24... Rab8 {[%clk
0:01:37.3]} 25. Bc2 {[%clk 0:01:03.9]} 25... Qa1+ {[%clk 0:01:30.9]} 26. Kh2
{[%clk 0:01:03.8]} 26... Qxa2 {[%clk 0:01:27.8]} 27. Qd3 {[%clk 0:00:48.1]}
27... exf4 {[%clk 0:01:20.3]} 28. d6 {[%clk 0:00:47.5]} 28... b3 {[%clk
0:01:11.6]} 29. dxe7 {[%clk 0:00:37.6]} 29... bxc2 {[%clk 0:01:05.6]} 30.
exf8=Q+ {[%clk 0:00:23.3]} 30... Rxf8 {[%clk 0:01:04]} 31. Qd5+ {[%clk
0:00:15.6]} 31... Rf7 {[%clk 0:00:58.5]} 32. Rc3 {[%clk 0:00:13.6]} 32... f3
{[%clk 0:00:51.5]} 33. Qd2 {[%clk 0:00:06.8]} 33... c1=N {[%clk 0:00:48.6]} 34.
Qxa2 {[%clk 0:00:04.6]} 34... Nxa2 {[%clk 0:00:47.6]} 0-1